fUSD/lending_fUSD_20241127
["ID","MTS","AMOUNT","RATE_DAILY","PERIOD"]
[343497133,1732673434331,-500.0,0.00016999,2]
[343497134,1732673434342,-500.0,0.00016999,2]
[343497135,1732673434351,-500.0,0.00016999,2]
[343497136,1732673434361,-500.0,0.00016999,2]
[343497137,1732673434370,-500.0,0.00016999,2]
[343497138,1732673434380,-567.53470966,0.00016999,2]
[343497139,1732673434390,-500.0,0.00016999,2]
[343497140,1732673434399,-500.0,0.00016999,2]
[343497141,1732673434409,-500.0,0.00016999,2]
[343497142,1732673434418,-500.0,0.00016999,2]
[343497143,1732673434427,-500.0,0.00016999,2]
[343497144,1732673434437,-190.29999999,0.00016999,2]
[343497145,1732673434446,-500.0,0.00016999,2]
[343497146,1732673434456,-500.0,0.00016999,2]
[343497147,1732673434465,-500.0,0.00016999,2]
[343497148,1732673434475,-501.0000544,0.00016999,2]
[343497149,1732673434484,-500.0,0.00016999,2]
[343497150,1732673434494,-500.0,0.00016999,2]
[343497151,1732673434503,-500.0,0.00016999,2]
[343497152,1732673434512,-500.0,0.00016999,2]
[343497153,1732673434522,-249.28,0.00016999,2]
[343497154,1732673434531,-500.0,0.00016999,2]
[343497155,1732673434541,-500.0,0.00016999,2]
[343497156,1732673434552,-500.0,0.00016999,2]
[343497157,1732673434562,-500.0,0.00016999,2]
[343497158,1732673434572,-500.0,0.00016999,2]
[343497159,1732673434581,-500.0,0.00016999,2]
[343497160,1732673434591,-238.76761142,0.00016999,2]
[343497161,1732673434600,-500.0,0.00016999,2]
[343497162,1732673434610,-500.0,0.00016999,2]
[343497163,1732673434619,-500.0,0.00016999,2]
[343497164,1732673434628,-500.0,0.00016999,2]
[343497165,1732673434638,-500.0,0.00016999,2]
[343497166,1732673434647,-500.0,0.00016999,2]
[343497167,1732673434657,-500.0,0.00016999,2]
[343497168,1732673434667,-500.0,0.00016999,2]
[343497169,1732673434676,-500.0,0.00016999,2]
[343497170,1732673434685,-500.0,0.00016999,2]
[343497171,1732673434695,-500.0,0.00016999,2]
[343497172,1732673434704,-500.0,0.00016999,2]
[343497173,1732673434717,-500.0,0.00016999,2]
[343497174,1732673434726,-514.11,0.00016999,2]
[343497175,1732673434736,-514.83647576,0.00016999,2]
[343497176,1732673434746,-229.39693712,0.00016999,2]
[343497177,1732673434756,-423701.93557058,0.00017,2]
[343497178,1732673434795,-495.09835723,0.00017,2]
[343497181,1732673437590,-500.0,0.00016999,2]
[343497182,1732673437601,-202.24367201,0.00016999,2]
[343497183,1732673438104,-297.75632799,0.00016999,2]
[343497184,1732673438115,-2772810.40838073,0.00017,2]
[343497185,1732673438124,-42897.30576735,0.00017,2]
[343497186,1732673438135,-15882608.04338293,0.00017,2]
[343497187,1732673438146,-26226.65460843,0.00017,2]
[343497189,1732673438158,-1653.8530936,0.00017,2]
[343497195,1732673440248,-268.59924369,0.00016999,2]
[343497197,1732673444217,-231.40075631,0.00016999,2]
[343497198,1732673444227,-500.0,0.00016999,2]
[343497199,1732673444237,-358.16,0.00016999,2]
[343497200,1732673444247,-519.88839984,0.00016999,2]
[343497201,1732673444256,-532.95350639,0.00016999,2]
[343497202,1732673444266,-1367.06067754,0.00017,2]
[343497203,1732673444278,-2346.02525347,0.00017,2]
[343497204,1732673444434,-1252.87859043,0.00017,2]
[343497205,1732673444446,-1746.00600729,0.00017,2]
[343497206,1732673444459,-1622.32907883,0.00017,2]
[343497207,1732673444471,-932.199998,0.00017,2]
[343497208,1732673444483,-3346.0,0.00017,2]
[343497209,1732673444495,-9704.8,0.00017,2]
[343497215,1732673447968,500.0,0.00017,30]
[343497216,1732673449238,258.79,0.00015014,2]
[343497217,1732673478236,2456.7714259,0.00015,2]
[343497218,1732673622050,244012.07786168,0.00011,2]
[343497219,1732673622087,2000000.0,0.00011,2]
[343497220,1732673622115,693401.41616882,0.00011,2]
[343497221,1732673622144,1930000.0,0.00011,2]
[343497222,1732673622174,87152.31211731,0.00011,2]
[343497223,1732673622197,100000.0,0.00011,2]
[343497224,1732673622226,50000000.0,0.00011,2]
[343497225,1732673673935,308.21249065,0.00010999,2]
[343497226,1732673674198,419.68965135,0.00010999,2]
[343497228,1732673701417,300.0,0.00010999,2]
[343497229,1732673720878,72.097858,0.0001,2]
[343497230,1732673720907,161.19211112,0.0001,2]
[343497231,1732673720931,161.19211112,0.0001,2]
[343497232,1732673720956,161.19211112,0.0001,2]
[343497233,1732673720981,161.19211112,0.0001,2]
[343497234,1732673721005,161.19211112,0.0001,2]
[343497235,1732673721030,161.19211112,0.0001,2]
[343497236,1732673721055,161.19211112,0.0001,2]
[343497237,1732673721089,161.19211112,0.0001,2]
[343497238,1732673721112,161.19211112,0.0001,2]
[343497239,1732673721136,161.19211112,0.0001,2]
[343497240,1732673721161,161.19211112,0.0001,2]
[343497241,1732673721191,161.19211112,0.0001,2]
[343497242,1732673721215,161.19211112,0.0001,2]
[343497243,1732673721240,161.19211112,0.0001,2]
[343497244,1732673721264,161.19211112,0.0001,2]
[343497245,1732673721293,161.19211112,0.0001,2]
[343497246,1732673721324,161.19211112,0.0001,2]
[343497247,1732673721350,161.19211112,0.0001,2]
[343497248,1732673721376,161.19211112,0.0001,2]
[343497249,1732673721401,161.19211112,0.0001,2]
[343497250,1732673721426,161.19211112,0.0001,2]
[343497251,1732673721459,1882518.07608756,0.0001,2]
[343497252,1732673721489,700000.0,0.0001,2]
[343497253,1732673721521,20000.0,0.0001,2]
[343497254,1732673721561,-161.19211112,0.0001,2]
[343497255,1732673721601,-161.19211112,0.0001,2]
[343497256,1732673721640,-161.19211112,0.0001,2]
[343497257,1732673721910,-161.19211112,0.0001,2]
[343497258,1732673721940,-161.19211112,0.0001,2]
[343497259,1732673721969,-161.19211112,0.0001,2]
[343497260,1732673722007,-161.19211112,0.0001,2]
[343497261,1732673722047,-161.19211112,0.0001,2]
[343497262,1732673722085,-161.19211112,0.0001,2]
[343497263,1732673722119,-161.19211112,0.0001,2]
[343497264,1732673722149,-161.19211112,0.0001,2]
[343497265,1732673722178,-161.19211112,0.0001,2]
[343497266,1732673722207,-161.19211112,0.0001,2]
[343497267,1732673722248,-161.19211112,0.0001,2]
[343497268,1732673722281,-161.19211112,0.0001,2]
[343497269,1732673722329,-161.19211112,0.0001,2]
[343497270,1732673722360,-161.19211112,0.0001,2]
[343497271,1732673722403,-161.19211112,0.0001,2]
[343497272,1732673722661,-161.19211112,0.0001,2]
[343497273,1732673722702,-161.19211112,0.0001,2]
[343497274,1732673722733,-161.19211112,0.0001,2]
[343497275,1732673722763,-161.19211112,0.0001,2]
[343497276,1732673722794,-161.19211112,0.0001,2]
[343497277,1732673722839,-161.19211112,0.0001,2]
[343497278,1732673722888,-161.19211032,0.0001,2]
[343497279,1732673722925,-161.19211112,0.0001,2]
[343497280,1732673722956,-161.19211112,0.0001,2]
[343497281,1732673722986,-161.19211112,0.0001,2]
[343497282,1732673723016,-161.19211112,0.0001,2]
[343497283,1732673723572,-161.19211112,0.0001,2]
[343497284,1732673998511,1010.08095107,0.00023,120]
[343497285,1732674232749,153.47,0.00016658,30]
[343497327,1732674631806,-283.54,8.495e-05,2]
[343497328,1732674631818,-4492.91631631,9e-05,2]
[343497329,1732674631829,-300.0,9e-05,3]
[343497330,1732674631838,-284.68,9.002e-05,2]
[343497331,1732674631848,-600.0,9.1e-05,3]
[343497332,1732674631857,-900.0,9.2e-05,3]
[343497333,1732674631868,-1402.45727379,9.239e-05,2]
[343497334,1732674631880,-1145.20272621,9.239e-05,2]
[343497335,1732674631890,-1200.0,9.3e-05,3]
[343497336,1732674631900,-1600.0,9.4e-05,3]
[343497337,1732674631914,-536.08487,9.452e-05,2]
[343497338,1732674631924,-300.0,9.5e-05,3]
[343497339,1732674631933,-300.0,9.6e-05,3]
[343497340,1732674631943,-300.0,9.7e-05,3]
[343497341,1732674631953,-1272.30781916,9.791e-05,2]
[343497342,1732674631977,-31212.77004087,9.791e-05,2]
[343497343,1732674631988,-420.123,9.8e-05,2]
[343497344,1732674631999,-169.58676819,9.8e-05,2]
[343497345,1732674632009,-205.0,9.8e-05,2]
[343497346,1732674632018,-300.0,9.8e-05,3]
[343497347,1732674632028,-150.0,9.8e-05,2]
[343497348,1732674632038,-57762.2847464,9.801e-05,2]
[343497349,1732674632050,-49569.7152536,9.801e-05,2]
[343497350,1732674632060,-691.0,9.9e-05,3]
[343497351,1732674632069,-1317.45336133,9.913e-05,2]
[343497352,1732674632079,-2152.71957266,9.913e-05,2]
[343497353,1732674632089,-4621.0,9.973e-05,2]
[343497354,1732674632099,-159.855648,9.973e-05,2]
[343497355,1732674632110,-261.98339662,9.973e-05,2]
[343497356,1732674632120,-500.0,9.973e-05,2]
[343497357,1732674632130,-196.21982878,0.0001,2]
[343497358,1732674632140,-62317.82078563,0.0001,2]
[343497383,1732674638449,-503.64091238,9.973e-05,2]
[343497385,1732674638460,-6927.96074572,0.0001,2]
[343497387,1732674638469,-40560671.9466813,0.0001,2]
[343497389,1732674638481,-93262.57467617,0.0001,2]
[343497392,1732674638503,-596.21427,0.0001,2]
[343497398,1732674640020,-1178.44514631,0.0001,2]
[343497399,1732674640178,-835.7370044,0.0001,2]
[343497492,1732674643031,-511.81214025,9.973e-05,2]
[343497493,1732674643046,-3232.54952131,0.0001,2]
[343497494,1732674643060,-1339.29889936,0.0001,2]
[343497495,1732674643078,-341.93017432,0.0001,2]
[343497496,1732674643094,-2869.50131441,0.0001,2]
[343497502,1732674643213,-6.5704809,0.0001,2]
[343497503,1732674643230,-952.23040602,0.0001,2]
[343497510,1732674648110,-150.0,0.0001,2]
[343497511,1732674649924,-150.0,0.0001,2]
[343497512,1732674650482,-150.0,0.0001,2]
[343497513,1732674650930,-150.0,0.0001,2]
[343497514,1732674651468,-150.0,0.0001,2]
[343497515,1732674652201,-150.0,0.0001,2]
[343497516,1732674652686,-150.0,0.0001,2]
[343497517,1732674653193,-150.0,0.0001,2]
[343497518,1732674653625,-150.0,0.0001,2]
[343497519,1732674654097,-150.0,0.0001,2]
[343497520,1732674654621,-150.0,0.0001,2]
[343497521,1732674655284,-150.0,0.0001,2]
[343497522,1732674655736,-150.0,0.0001,2]
[343497523,1732674656215,-150.0,0.0001,2]
[343497524,1732674659211,-150.0,0.0001,2]
[343497525,1732674659682,-150.0,0.0001,2]
[343497526,1732674660169,-150.0,0.0001,2]
[343497527,1732674660777,-150.0,0.0001,2]
[343497528,1732674661390,-150.0,0.0001,2]
[343497529,1732674661840,-150.0,0.0001,2]
[343497530,1732674662318,-150.0,0.0001,2]
[343497531,1732674662798,-150.0,0.0001,2]
[343497532,1732674663291,-150.0,0.0001,2]
[343497533,1732674663795,-150.0,0.0001,2]
[343497534,1732674664263,-150.0,0.0001,2]
[343497535,1732674667136,-150.0,0.0001,2]
[343497536,1732674671119,-150.0,0.0001,2]
[343497537,1732674671704,-150.0,0.0001,2]
[343497538,1732674676013,-150.0,0.0001,2]
[343497539,1732674676535,-150.0,0.0001,2]
[343497540,1732674677000,-150.0,9.973e-05,2]
[343497541,1732674677512,-150.0,9.973e-05,2]
[343497542,1732674678571,-150.0,9.973e-05,2]
[343497543,1732674749857,-150.0,9.999e-05,2]
[343497544,1732674750481,-150.0,9.999e-05,2]
[343497545,1732674751076,-150.0,9.999e-05,2]
[343497546,1732674751862,-150.0,9.999e-05,2]
[343497547,1732674756034,-150.0,9.999e-05,2]
[343497548,1732674756510,-150.0,9.999e-05,2]
[343497549,1732674756981,-150.0,9.999e-05,2]
[343497550,1732674757551,-150.0,9.999e-05,2]
[343497551,1732674758087,-150.0,9.999e-05,2]
[343497552,1732674758571,-150.0,9.999e-05,2]
[343497553,1732674814304,-161.19211112,9.757e-05,2]
[343497554,1732674814996,-161.19211112,9.757e-05,2]
[343497555,1732674815525,-161.19211112,9.757e-05,2]
[343497556,1732674816170,-161.19211112,9.757e-05,2]
[343497557,1732674816734,-161.19211112,9.757e-05,2]
[343497558,1732674817239,-161.19211112,9.757e-05,2]
[343497559,1732674817809,-161.19211112,9.757e-05,2]
[343497560,1732674818365,-161.19211112,9.757e-05,2]
[343497561,1732674819060,-161.19211112,9.757e-05,2]
[343497562,1732674819540,-161.19211112,9.757e-05,2]
[343497563,1732674820027,-161.19211112,9.757e-05,2]
[343497564,1732674830806,-161.19211112,9.71e-05,2]
[343497565,1732674831515,-161.19211112,9.71e-05,2]
[343497566,1732674832046,-161.19211112,9.71e-05,2]
[343497567,1732674832575,-161.19211112,9.71e-05,2]
[343497568,1732674833060,-161.19211112,9.71e-05,2]
[343497569,1732674833611,-161.19211112,9.71e-05,2]
[343497570,1732674834158,-161.19211112,9.71e-05,2]
[343497571,1732674834704,-161.19211112,9.71e-05,2]
[343497572,1732675002089,-300.0,0.00025,120]
[343497573,1732675002122,-500.0,0.0002585,120]
[343497574,1732675002148,-400.0,0.00026,120]
[343497575,1732675011633,-203.034718,0.0002635,120]
[343497576,1732675011660,-800.0,0.00026986,120]
[343497577,1732675011686,-730.57,0.00026986,120]
[343497578,1732675011712,-800.0,0.00026986,120]
[343497579,1732675011738,-800.0,0.00026986,120]
[343497580,1732675011763,-800.0,0.00026986,120]
[343497581,1732675011790,-800.0,0.00026986,120]
[343497582,1732675011815,-711.47,0.00026986,120]
[343497583,1732675011841,-400.0,0.00027,120]
[343497584,1732675011876,-410.331,0.0002794,120]
[343497585,1732675011902,-500.0,0.0002795,120]
[343497586,1732675011928,-2000.0,0.0002795,120]
[343497587,1732675011954,-502.672479,0.0002795,120]
[343497588,1732675011980,-500.0,0.0002795,120]
[343497589,1732675012016,-200.0,0.0002795,120]
[343497590,1732675012051,-400.0,0.00028,120]
[343497591,1732675025949,150.0,0.000115,5]
[343497592,1732675179221,-1000.0,0.00045096,30]
[343497593,1732675179248,-10209.67332654,0.00045096,60]
[343497594,1732675179274,-10000.0,0.00045096,120]
[343497595,1732675179299,-1500.0,0.00045096,120]
[343497596,1732675179324,-3534.28758504,0.00045096,30]
[343497597,1732675179349,-7058.20139297,0.00045096,30]
[343497598,1732675179376,-10402.09976137,0.00045096,30]
[343497599,1732675179402,-4034.06159118,0.00045096,30]
[343497600,1732675179428,-2993.26741634,0.00045096,120]
[343497601,1732675179452,-2751.9364983,0.00045096,120]
[343497602,1732675179476,-4705.35074614,0.00045096,120]
[343497603,1732675179500,-4763.19904391,0.00045096,60]
[343497604,1732675179524,-3123.5028866,0.00045096,120]
[343497605,1732675179548,-4836.33231581,0.00045096,30]
[343497606,1732675179572,-5266.34619971,0.00045096,30]
[343497607,1732675179596,-9559.48031048,0.00045096,120]
[343497608,1732675179619,-3105.3074675,0.00045096,120]
[343497609,1732675179647,-3353.94117605,0.00045096,120]
[343497610,1732675179672,-3498.14990518,0.00045096,120]
[343497611,1732675179698,-1114.75986695,0.00045096,60]
[343497612,1732675179722,-4352.37507568,0.00045096,30]
[343497613,1732675179751,-5424.47376853,0.00045096,30]
[343497614,1732675179775,-4735.38356472,0.00045096,120]
[343497615,1732675179800,-4813.47823895,0.00045096,30]
[343497616,1732675179825,-6584.81412806,0.00045096,30]
[343497617,1732675179849,-5320.33962314,0.00045096,30]
[343497618,1732675179873,-5605.57871855,0.00045096,120]
[343497619,1732675179898,-6601.49740866,0.00045096,120]
[343497620,1732675179924,-3346.22480236,0.00045096,120]
[343497621,1732675179950,-3806.1605025,0.00045096,30]
[343497622,1732675179977,-4761.42985639,0.00045096,120]
[343497623,1732675180006,-5020.39921374,0.00045096,120]
[343497624,1732675180030,-3085.60843149,0.00045096,120]
[343497625,1732675180056,-9029.67711257,0.00045096,30]
[343497626,1732675180082,-24714.5,0.00045096,90]
[343497627,1732675180108,-3000.0,0.00045096,120]
[343497628,1732675180133,-20000.0,0.00045096,90]
[343497629,1732675180157,-50000.0,0.00045096,120]
[343497630,1732675180182,-60000.0,0.00045096,120]
[343497631,1732675180208,-20000.0,0.00045096,30]
[343497632,1732675180234,-30000.0,0.00045096,90]
[343497633,1732675180258,-30000.0,0.00045096,90]
[343497634,1732675180284,-20000.0,0.00045096,120]
[343497635,1732675180309,-50000.0,0.00045096,120]
[343497636,1732675180335,-60000.0,0.00045096,120]
[343497637,1732675180361,-30000.0,0.00045096,120]
[343497638,1732675180387,-20000.0,0.00045096,120]
[343497639,1732675180412,-35533.41084,0.00045096,60]
[343497640,1732675180449,-12674.34523085,0.00045096,30]
[343497641,1732675180476,-22819.44649576,0.00045096,30]
[343497642,1732675180501,-41715.74715075,0.00045096,30]
[343497643,1732675180527,-3371.0,0.00045096,120]
[343497644,1732675180553,-1007.0,0.00045096,35]
[343497645,1732675180579,-235701.48732204,0.00045096,30]
[343497646,1732675180605,-190862.39757587,0.00045096,30]
[343497647,1732675180631,-197.90349924,0.00045096,60]
[343497648,1732675180656,-10000.0,0.00045096,120]
[343497649,1732675180684,-10000.0,0.00045096,120]
[343497650,1732675180710,-150.78204031,0.00045096,50]
[343497651,1732675180741,-1000.0,0.00045096,120]
[343497652,1732675180767,-1000.0,0.00045096,120]
[343497653,1732675180793,-68261.88961135,0.00045096,30]
[343497654,1732675180819,-5100.0,0.00045096,30]
[343497655,1732675180851,-19300.0,0.00045096,120]
[343497656,1732675181125,-9234.24837372,0.00045096,120]
[343497657,1732675181155,-1404.36634615,0.00045096,120]
[343497658,1732675181181,-1719.80722882,0.00045096,120]
[343497659,1732675181207,-407.3483532,0.00045096,120]
[343497660,1732675181238,-100000.0,0.00045096,30]
[343497661,1732675181264,-1733.0637,0.00045096,30]
[343497662,1732675181294,-50000.0,0.00045096,30]
[343497663,1732675181321,-50000.0,0.00045096,31]
[343497664,1732675181350,-50000.0,0.00045096,32]
[343497665,1732675181376,-50000.0,0.00045096,33]
[343497666,1732675181405,-50000.0,0.00045096,34]
[343497667,1732675181431,-50000.0,0.00045096,35]
[343497668,1732675181456,-118376.28460999,0.00045096,120]
[343497669,1732675181486,-1127.59218737,0.00045096,120]
[343497670,1732675181511,-530.63148656,0.00045096,120]
[343497671,1732675181536,-1489.0,0.00045096,120]
[343497672,1732675181561,-3186.42095534,0.00045096,30]
[343497673,1732675181586,-673.56018898,0.00045096,120]
[343497674,1732675181612,-30136.52640243,0.00045096,30]
[343497675,1732675181638,-421.33175044,0.00045096,30]
[343497676,1732675181664,-2351.72443154,0.00045096,120]
[343497677,1732675181694,-8023.4788533,0.00045096,120]
[343497678,1732675181721,-174.2262086,0.00045096,60]
[343497679,1732675181749,-10429.28172103,0.00045096,120]
[343497680,1732675181776,-3636.64224931,0.00045096,120]
[343497681,1732675181801,-4265.04329228,0.00045096,30]
[343497682,1732675181825,-4150.68801482,0.00045096,120]
[343497683,1732675181850,-9150.19934549,0.00045096,30]
[343497684,1732675181876,-79924.89725319,0.00045096,30]
[343497685,1732675181901,-12990.35127929,0.00045096,30]
[343497686,1732675181927,-5243.71688412,0.00045096,30]
[343497687,1732675181952,-26514.58246362,0.00045096,30]
[343497688,1732675181981,-5793.07838744,0.00045096,30]
[343497689,1732675182007,-23319.50090084,0.00045096,30]
[343497690,1732675182032,-31663.51138649,0.00045096,30]
[343497691,1732675182057,-7874.53808963,0.00045096,30]
[343497692,1732675182083,-41599.90024257,0.00045096,30]
[343497693,1732675182109,-32154.9273064,0.00045096,30]
[343497694,1732675182133,-28526.76380901,0.00045096,30]
[343497695,1732675182159,-50000.0,0.00045096,30]
[343497696,1732675182186,-34387.32622568,0.00045096,30]
[343497697,1732675182213,-26002.38585613,0.00045096,30]
[343497698,1732675182243,-12747.89080034,0.00045096,30]
[343497699,1732675182268,-9500.0,0.00045096,30]
[343497700,1732675182293,-57362.95788787,0.00045096,30]
[343497701,1732675182317,-19242.91403917,0.00045096,30]
[343497702,1732675182342,-16401.48476026,0.00045096,30]
[343497703,1732675182367,-32547.8790997,0.00045096,30]
[343497704,1732675182391,-29999.999999,0.00045096,30]
[343497705,1732675182415,-5100.0,0.00045096,33]
[343497706,1732675182439,-5100.0,0.00045096,34]
[343497707,1732675182463,-621.09818305,0.00045096,30]
[343497708,1732675182491,-482.42633262,0.00045096,120]
[343497709,1732675182517,-30000.0,0.00045096,30]
[343497710,1732675182544,-19822.51571759,0.00045096,60]
[343497711,1732675182569,-2000.0,0.00045096,36]
[343497712,1732675182598,-178020.64495651,0.00045096,120]
[343497713,1732675182623,-155.0113048,0.00045096,120]
[343497714,1732675182648,-214.25132722,0.00045096,30]
[343497715,1732675182672,-17001.79624188,0.00045096,30]
[343497716,1732675182699,-9093.04959483,0.00045096,120]
[343497717,1732675182725,-5000.0,0.00045096,90]
[343497718,1732675182752,-5000.0,0.00045096,92]
[343497719,1732675182777,-5000.0,0.00045096,88]
[343497720,1732675182802,-5000.0,0.00045096,94]
[343497721,1732675182827,-1995.96765085,0.00045096,30]
[343497722,1732675182851,-1000.0,0.00045096,120]
[343497723,1732675182876,-3656.62851512,0.00045096,40]
[343497724,1732675182902,-31612.18766808,0.00045096,30]
[343497725,1732675182927,-202.0,0.00045096,30]
[343497726,1732675182952,-211.80801289,0.00045096,60]
[343497727,1732675182977,-1845.6675427,0.00045096,120]
[343497728,1732675183010,-741.19564094,0.00045096,120]
[343497729,1732675183195,-159.29538856,0.00045096,120]
[343497730,1732675183222,-74755.7053282,0.00045096,120]
[343497731,1732675183255,-1000.0,0.00045096,120]
[343497732,1732675183281,-628.0,0.00045096,120]
[343497733,1732675183307,-2702.69,0.00045096,30]
[343497734,1732675183334,-9693.68537361,0.00045096,120]
[343497735,1732675183360,-957.66617907,0.00045096,120]
[343497736,1732675183386,-139099.38896978,0.00045096,120]
[343497737,1732675188656,-224.70706665,0.00045096,120]
[343497738,1732675188682,-936.85072411,0.00045096,120]
[343497739,1732675188968,-10000.0,0.00045096,120]
[343497740,1732675189007,-8349.0,0.00045096,120]
[343497741,1732675189033,-5100.0,0.00045096,32]
[343497742,1732675189062,-405.0,0.00045096,120]
[343497743,1732675189088,-744.6285193,0.00045096,120]
[343497744,1732675189116,-7572.2102234,0.00045096,35]
[343497745,1732675189143,-5000.0,0.00045096,120]
[343497746,1732675189171,-5500.0,0.00045096,30]
[343497747,1732675189198,-1553.0,0.00045096,120]
[343497748,1732675189224,-13043.52616895,0.00045096,30]
[343497749,1732675189258,-27000.0,0.00045096,120]
[343497750,1732675189287,-15357.0,0.00045096,30]
[343497751,1732675189313,-10000.0,0.00045096,120]
[343497752,1732675189341,-2262.0,0.00045096,32]
[343497753,1732675189369,-10000.0,0.00045096,120]
[343497754,1732675189394,-10000.0,0.00045096,120]
[343497755,1732675189418,-10000.0,0.00045096,120]
[343497756,1732675189443,-10000.0,0.00045096,120]
[343497757,1732675189468,-10000.0,0.00045096,120]
[343497758,1732675189506,-10000.0,0.00045096,120]
[343497759,1732675189534,-1208.99164878,0.00045096,120]
[343497760,1732675189561,-10000.0,0.00045096,120]
[343497761,1732675189588,-10000.0,0.00045096,120]
[343497762,1732675189615,-1685.0,0.00045096,120]
[343497763,1732675189641,-10000.0,0.00045096,120]
[343497764,1732675189666,-10000.0,0.00045096,120]
[343497765,1732675189696,-10000.0,0.00045096,120]
[343497766,1732675189723,-10000.0,0.00045096,120]
[343497767,1732675189754,-10000.0,0.00045096,120]
[343497768,1732675189779,-30000.0,0.00045096,60]
[343497769,1732675189804,-10000.0,0.00045096,120]
[343497770,1732675189829,-10000.0,0.00045096,120]
[343497771,1732675189854,-3433.24119821,0.00045096,120]
[343497772,1732675189880,-6566.69089748,0.00045096,120]
[343497773,1732675189906,-10000.0,0.00045096,120]
[343497774,1732675189931,-10000.0,0.00045096,120]
[343497775,1732675189957,-4722.25218871,0.00045096,120]
[343497776,1732675189982,-10000.0,0.00045096,120]
[343497777,1732675190011,-1254.0976129,0.00045096,120]
[343497778,1732675190036,-10000.0,0.00045096,120]
[343497779,1732675190061,-10000.0,0.00045096,60]
[343497780,1732675190092,-10000.0,0.00045096,30]
[343497781,1732675190118,-10000.0,0.00045096,120]
[343497782,1732675190144,-53693.64603138,0.00045096,120]
[343497783,1732675190171,-10000.0,0.00045096,120]
[343497784,1732675190195,-158.0,0.00045096,30]
[343497785,1732675190221,-171.05460782,0.00045096,60]
[343497786,1732675190256,-9217.0,0.00045096,120]
[343497787,1732675190281,-164.0,0.00045096,120]
[343497788,1732675190306,-19070.0,0.00045096,30]
[343497789,1732675190332,-1055.0,0.00045096,30]
[343497790,1732675190360,-1055.0,0.00045096,30]
[343497791,1732675190385,-1055.0,0.00045096,30]
[343497792,1732675190412,-1055.0,0.00045096,30]
[343497793,1732675190439,-1055.0,0.00045096,30]
[343497794,1732675190464,-591.06833465,0.00045096,90]
[343497795,1732675190491,-16079.12346384,0.00045096,30]
[343497796,1732675190518,-20993.28827108,0.00045096,30]
[343497797,1732675190544,-7185.82112902,0.00045096,30]
[343497798,1732675190571,-13079.0233306,0.00045096,30]
[343497799,1732675190598,-3265.74023392,0.00045096,60]
[343497800,1732675190624,-8764.08018032,0.00045096,120]
[343497801,1732675190651,-7231.7518683,0.00045096,120]
[343497802,1732675190684,-173.39447331,0.00045096,120]
[343497803,1732675190710,-5127.02647335,0.00045096,120]
[343497804,1732675190742,-443.43690967,0.00045096,120]
[343497805,1732675190769,-1565.46014235,0.00045096,120]
[343497806,1732675190795,-3567.78765392,0.00045096,90]
[343497807,1732675190822,-17045.20822591,0.00045096,120]
[343497808,1732675190849,-3807.6297051,0.00045096,30]
[343497809,1732675190876,-3465.85749192,0.00045096,120]
[343497810,1732675190903,-504.92150704,0.00045096,120]
[343497811,1732675190929,-4236.33401565,0.00045096,120]
[343497812,1732675190955,-158.625551,0.00045096,40]
[343497813,1732675190984,-3000.0,0.00045096,120]
[343497814,1732675191014,-3000.0,0.00045096,120]
[343497815,1732675191040,-3000.0,0.00045096,120]
[343497816,1732675191068,-3000.0,0.00045096,120]
[343497817,1732675191096,-3000.0,0.00045096,120]
[343497818,1732675191123,-2194.69431025,0.00045096,120]
[343497819,1732675191151,-1055.0,0.00045096,30]
[343497820,1732675191180,-158.0,0.00045096,30]
[343497821,1732675191206,-1000.0,0.00045096,30]
[343497822,1732675191232,-1000.0,0.00045096,30]
[343497823,1732675191260,-1000.0,0.00045096,30]
[343497824,1732675191291,-1000.0,0.00045096,30]
[343497825,1732675191318,-1000.0,0.00045096,30]